bitfinex/quotes_ETHUSD_20241207
["timestamp","ask_amount","ask_price","bid_price","bid_amount"]
[1733531378701,0.86206822,4014.8,4014.4,0.2057221]
[1733531378902,1.04250288,4014.9,4014.4,0.2057221]
[1733531379058,0.86206736,4014.8,4014.4,0.2057221]
[1733531379266,1.04250288,4014.9,4014.4,0.2057221]
[1733531379504,3.19772625,4014.8,4014.4,0.2057221]
[1733531379665,0.86208941,4014.7,4014.4,0.2057221]
[1733531380002,1.04250288,4014.9,4014.2,1.07085754]
[1733531380161,2.15518685,4014.8,4014.2,1.07085754]
[1733531380362,1.80590288,4015.0,4014.9,3.0]
[1733531380593,3.9610879,4015.0,4014.9,3.0]
[1733531380864,3.9610879,4015.0,4014.2,1.07085754]
[1733531381071,2.15518502,4014.9,4014.3,0.18475575]
[1733531381418,0.86207401,4014.8,4014.3,0.18475575]
[1733531381699,0.7634,4015.0,4014.3,0.18475575]
[1733531381874,1.80590288,4015.0,4014.9,3.0]
[1733531382078,3.9610664,4015.0,4014.2,1.07085754]
[1733531382398,2.15516352,4014.9,4014.3,0.22251559]
[1733531382597,1.04250288,4015.2,4014.3,0.19760781]
[1733531382804,2.15497543,4015.1,4014.3,0.19760781]
[1733531383014,1.04250288,4015.2,4014.3,0.19760781]
[1733531383165,2.15488469,4015.1,4014.3,0.19760781]
[1733531383371,1.04250288,4015.2,4014.4,0.2173686]
[1733531383571,0.86196251,4015.1,4014.4,0.2173686]
[1733531383779,1.04250288,4015.2,4015.1,3.0]
[1733531383992,3.19741153,4015.2,4015.1,3.0]
[1733531384187,3.19741153,4015.2,4014.7,0.7692]
[1733531384404,1.85180288,4015.3,4015.1,3.0]
[1733531384576,3.19729421,4015.2,4015.1,3.0]
[1733531385278,3.19729421,4015.2,4014.7,0.7692]
[1733531385478,2.15479133,4015.1,4014.7,0.7692]
[1733531385707,1.04250288,4015.2,4014.7,0.7692]
[1733531385914,1.04250288,4015.2,4015.1,3.0]
[1733531386100,3.19727498,4015.2,4015.1,3.0]
[1733531386418,2.1547721,4015.2,4014.7,0.7692]
[1733531386598,0.86190884,4015.1,4014.7,0.7692]
[1733531386801,1.85180288,4015.3,4014.7,0.7692]
[1733531387119,3.19718814,4015.2,4014.7,0.7692]
[1733531387287,0.8618741,4015.1,4014.3,0.02490568]
[1733531387488,3.96294441,4015.0,4013.8,1.07085754]
[1733531387700,3.19714441,4014.9,4013.8,1.07085754]
[1733531387902,1.62765661,4014.8,4013.8,1.07085754]
[1733531388089,1.62765661,4014.8,4013.5,1.07085754]
[1733531388090,0.7658,4014.8,4013.5,1.07085754]
[1733531388284,3.1975329,4014.7,4013.5,1.07085754]
[1733531388514,0.7658,4014.5,4013.6,0.18804575]
[1733531388719,0.86201201,4014.4,4013.6,0.18804575]
[1733531388926,1.80830288,4014.5,4013.8,1.07085754]
[1733531389082,0.86203434,4014.4,4013.8,1.07085754]
[1733531389417,0.7658,4014.5,4013.8,1.07085754]
[1733531389418,1.80830288,4014.5,4013.8,1.07085754]
[1733531389623,0.86205205,4014.4,4013.8,1.07085754]
[1733531389785,1.80830288,4014.5,4013.8,1.07085754]
[1733531389980,0.8620583,4014.4,4013.8,1.07085754]
[1733531390194,1.80830288,4014.5,4013.8,1.07085754]
[1733531390391,0.86209997,4014.4,4013.8,1.07085754]
[1733531390726,1.80830288,4014.5,4013.8,1.07085754]
[1733531390928,0.86210014,4014.4,4013.8,1.07085754]
[1733531391114,0.86223721,4014.3,4013.8,1.19674787]
[1733531391416,1.80830288,4014.5,4013.8,1.19674787]
[1733531391607,2.1555932,4014.4,4013.8,1.19674787]
[1733531391806,0.86223728,4014.3,4013.8,1.19674787]
[1733531392007,1.80830288,4014.5,4013.8,1.19674787]
[1733531392211,2.155581,4014.4,4013.8,1.19674787]
[1733531392420,0.8622324,4014.3,4013.8,1.19674787]
[1733531392652,1.80830288,4014.5,4013.8,1.19674787]
[1733531392785,2.15566918,4014.4,4013.8,1.19674787]
[1733531393118,0.86226767,4014.3,4013.8,1.19674787]
[1733531393310,1.80830288,4014.5,4013.8,1.19674787]
[1733531393511,2.15564292,4014.4,4013.8,1.07085754]
[1733531393699,0.86225717,4014.3,4013.8,1.07085754]
[1733531393900,1.80830288,4014.5,4013.8,1.07085754]
[1733531394227,2.15564271,4014.4,4013.8,1.07085754]
[1733531394524,0.86225708,4014.3,4013.8,1.07085754]
[1733531394699,1.80830288,4014.5,4013.8,1.07085754]
[1733531395024,2.155675,4014.4,4013.8,1.07085754]
[1733531395221,0.86227,4014.3,4013.8,1.07085754]
[1733531395388,1.80830288,4014.5,4013.8,1.07085754]
[1733531395588,2.15567533,4014.4,4013.8,1.07085754]
[1733531395789,0.86227013,4014.3,4013.8,1.07085754]
[1733531396015,1.80830288,4014.5,4013.8,1.07085754]
[1733531396182,2.15567575,4014.4,4013.8,1.07085754]
[1733531396406,0.8622703,4014.3,4013.8,1.07085754]
[1733531396607,1.80830288,4014.5,4013.8,1.07085754]
[1733531396952,2.15573045,4014.4,4013.8,1.07085754]
[1733531397149,0.86229218,4014.3,4013.8,1.07085754]
[1733531397357,1.80830288,4014.5,4013.8,1.07085754]
[1733531397551,3.19833225,4014.4,4013.3,0.8096]
[1733531397754,0.86233175,4014.3,4013.9,1.07085754]
[1733531398054,1.04250288,4014.4,4013.9,1.07085754]
[1733531398217,0.86236386,4014.3,4013.9,1.07085754]
[1733531398416,1.80830288,4014.5,4013.9,1.07085754]
[1733531398719,2.15586305,4014.4,4013.9,1.07085754]
[1733531398925,0.86234522,4014.3,4013.9,1.07085754]
[1733531399121,0.7658,4014.5,4013.9,1.07085754]
[1733531399526,0.86228696,4014.4,4013.9,1.07085754]
[1733531399838,0.86228696,4014.3,4013.9,1.07085754]
[1733531400196,0.86228696,4014.2,4013.9,1.07085754]
[1733531400358,1.04250288,4014.4,4013.9,1.07085754]
[1733531400517,1.04250288,4014.4,4013.3,0.8096]
[1733531400518,2.15592672,4014.3,4013.3,0.8096]
[1733531400718,1.04250288,4014.4,4014.0,1.07085754]
[1733531400954,0.86236901,4014.3,4014.0,1.07085754]
[1733531401156,1.80830288,4014.5,4014.0,1.07085754]
[1733531401323,2.15590293,4014.4,4014.0,1.07085754]
[1733531401652,1.80830288,4014.5,4014.0,1.07085754]
[1733531401950,2.15592419,4014.4,4014.0,1.07085754]
[1733531402149,1.80830288,4014.5,4014.0,1.07085754]
[1733531402451,2.15591145,4014.4,4014.0,1.07085754]
[1733531402672,1.80830288,4014.5,4014.0,1.07085754]
[1733531402818,0.86237254,4014.4,4014.0,1.07085754]
[1733531403016,0.7658,4014.5,4014.0,1.07085754]
[1733531403434,0.86236317,4014.4,4013.3,0.8096]
[1733531403621,0.7658,4014.2,4013.5,1.07085754]
[1733531403839,0.86245624,4014.1,4013.5,1.07085754]
[1733531404040,0.86248585,4014.0,4013.5,1.07085754]
[1733531404347,2.15620881,4013.9,4013.5,1.07085754]
[1733531404552,1.04250288,4014.0,4013.5,1.07085754]
[1733531404752,1.04250288,4014.1,4013.5,1.07085754]
[1733531404946,2.15582263,4014.0,4013.5,1.07085754]
[1733531405254,1.31769735,4014.0,4013.0,0.8096]
[1733531405430,1.80830288,4013.8,4013.0,1.07085754]
[1733531405757,2.1556838,4013.7,4013.0,1.07085754]
[1733531405956,1.80830288,4013.8,4013.0,1.07085754]
[1733531406252,0.7658,4013.8,4013.0,1.07085754]
[1733531406656,0.7658,4013.8,4013.3,1.07085754]
[1733531407466,0.86222531,4013.7,4013.3,1.07085754]
[1733531407617,0.7658,4013.8,4013.3,1.07085754]
[1733531407844,0.86202767,4013.7,4013.3,1.07085754]
[1733531408155,1.8085517,4013.8,4013.3,1.07085754]
[1733531408478,1.10306793,4013.8,4013.1,1.07085754]
[1733531408847,1.10306793,4013.8,4012.9,0.90773578]
[1733531409046,0.86185255,4013.7,4012.7,3.0]
[1733531409277,1.0427517,4013.5,4012.8,1.07085754]
[1733531409456,2.15469606,4013.4,4012.8,1.07085754]
[1733531409761,3.19744776,4013.3,4012.8,1.07085754]
[1733531409970,0.86185255,4013.2,4012.8,1.07085754]
[1733531410292,0.55207753,4013.4,4012.8,1.07085754]
[1733531410293,1.59482923,4013.4,4012.8,1.07085754]
[1733531410463,1.59482923,4013.4,4011.6,1.07085754]
[1733531410464,1.62076234,4013.3,4012.4,1.07085754]
[1733531410647,0.86123438,4013.2,4012.4,1.07085754]
[1733531410848,0.7592,4013.1,4012.4,1.07085754]
[1733531412092,0.7592,4013.1,4012.7,1.07085754]
[1733531412399,0.7884,4013.5,4013.0,1.07085754]
[1733531412891,1.0427517,4014.1,4013.3,1.07085754]
[1733531413099,0.7717,4014.2,4013.8,1.07085754]
[1733531413388,0.7717,4014.5,4014.1,3.0]
[1733531413604,1.10955793,4014.5,4013.8,1.86685754]
[1733531414292,1.10955793,4014.5,4014.1,1.07085754]
[1733531414475,0.33785793,4014.5,4014.1,1.07085754]
[1733531415157,0.7717,4014.8,4014.1,1.07085754]
[1733531419360,1.0427517,4015.0,4014.7,1.07085754]
[1733531419567,1.8144517,4015.2,4014.7,1.07085754]
[1733531419705,0.7717,4015.2,4014.7,1.07085754]
[1733531420142,0.15700068,4015.5,4014.7,1.07085754]
[1733531420143,0.92870068,4015.5,4014.7,1.07085754]
[1733531420345,0.55214524,4015.4,4014.7,1.07085754]
[1733531420545,0.55214524,4015.4,4014.5,0.796]
[1733531420749,0.7717,4015.2,4013.9,0.796]
[1733531420936,0.7717,4014.9,4014.4,3.0]
[1733531421111,1.0427517,4014.7,4013.2,0.796]
[1733531421318,3.74608952,4014.6,4014.3,3.0]
[1733531421541,3.74608952,4014.6,4013.6,1.07085754]
[1733531421542,3.96488797,4014.5,4013.6,1.07085754]
[1733531421720,0.7717,4014.5,4013.6,1.07085754]
[1733531422064,0.86036961,4014.4,4013.6,1.07085754]
[1733531422354,0.7717,4014.5,4013.6,1.07085754]
[1733531422656,0.86036864,4014.4,4013.6,1.07085754]
[1733531422831,0.86036864,4014.3,4013.6,1.07085754]
[1733531423033,1.16484808,4014.5,4013.6,1.07085754]
[1733531423554,0.7717,4014.5,4013.9,1.07085754]
[1733531424249,0.86036741,4014.4,4013.9,1.07085754]
[1733531424450,0.7717,4014.5,4013.9,1.07085754]
[1733531424622,0.86039644,4014.4,4013.3,5.32022327]
[1733531424816,0.7717,4014.5,4013.3,5.32022327]
[1733531425157,0.86040377,4014.4,4013.3,5.9318456]
[1733531425362,0.7717,4014.5,4013.3,5.9318456]
[1733531425567,0.86042223,4014.4,4013.3,5.9318456]
[1733531425716,0.7717,4014.5,4013.3,5.9318456]
[1733531425921,0.86041009,4014.4,4013.3,5.9318456]
[1733531426147,0.7717,4014.5,4013.4,3.67278456]
[1733531426461,0.86040621,4014.4,4013.4,3.67278456]
[1733531426620,0.7717,4014.5,4013.4,3.67278456]
[1733531426821,0.86044072,4014.4,4013.4,3.67278456]
[1733531427045,0.7717,4014.5,4013.4,3.67278456]
[1733531427249,0.86031523,4014.4,4013.5,0.67890078]
[1733531427527,0.7717,4014.5,4013.5,0.67890078]
[1733531427726,0.86036474,4014.4,4013.5,0.67890078]
[1733531427949,1.0427517,4014.6,4013.7,2.32022327]
[1733531428229,1.0427517,4014.9,4013.8,3.7713]
[1733531428560,2.15057986,4014.8,4013.9,0.90915233]
[1733531428763,1.0427517,4015.2,4014.2,3.7713]
[1733531428921,0.86037727,4015.1,4014.2,3.7713]
[1733531429124,1.8171517,4015.4,4014.3,0.60915233]
[1733531429360,0.86040089,4015.3,4014.3,0.60915233]
[1733531429561,1.19975238,4015.5,4014.5,2.32022327]
[1733531429761,0.86032863,4015.4,4014.6,0.7713]
[1733531430068,0.15700068,4015.5,4014.7,0.60915233]
[1733531432126,3.96803818,4015.4,4014.1,3.09152327]
[1733531432433,3.19363818,4015.3,4014.2,3.0]
[1733531432633,1.0427517,4015.1,4014.2,3.0]
[1733531432842,3.19395917,4015.0,4014.2,3.0]
[1733531433167,3.19395917,4015.0,4014.1,3.09152327]
[1733531433168,0.7744,4014.8,4013.8,0.7713]
[1733531433467,3.19427189,4014.7,4013.8,0.7713]
[1733531433758,2.15152019,4014.6,4013.8,0.7713]
[1733531433957,0.86057996,4014.5,4013.8,0.7713]
[1733531434168,1.0427517,4014.7,4013.8,0.7713]
[1733531434389,2.15173393,4014.6,4013.8,4.08045233]
[1733531434547,1.80396594,4014.8,4013.8,4.08045233]
[1733531434756,3.1944682,4014.7,4013.8,4.08045233]
[1733531434946,0.86070239,4014.6,4013.8,4.08045233]
[1733531435153,1.0427517,4014.7,4013.8,4.08045233]
[1733531435443,2.15168064,4014.6,4013.9,0.64006756]
[1733531435637,1.0427517,4014.7,4013.9,0.64006756]
[1733531435868,0.86070609,4014.6,4013.9,0.64006756]
[1733531436047,1.0427517,4014.7,4013.9,0.64006756]
[1733531436369,0.8606725,4014.6,4013.9,0.64006756]
[1733531436573,0.76121424,4014.8,4014.0,0.70407432]
[1733531436788,0.86066899,4014.7,4014.0,0.70407432]
[1733531436946,1.0427517,4015.0,4014.2,0.7713]
[1733531437146,1.0427517,4015.2,4014.5,2.32022327]
[1733531437359,1.0427517,4015.4,4014.5,2.32022327]
[1733531437536,1.19975238,4015.5,4014.7,0.7713]
[1733531437736,2.15117727,4015.4,4014.7,0.7713]
[1733531438077,0.15700068,4015.5,4014.9,2.32022327]
[1733531438840,0.15700068,4015.5,4015.0,3.79620367]
[1733531439042,0.15700068,4015.5,4015.3,2.32022327]
[1733531439254,0.15700068,4015.5,4015.4,3.53202233]
[1733531439475,0.15700068,4015.5,4015.4,4.30332233]
[1733531441671,0.15700068,4015.5,4015.4,3.53202233]
[1733531441874,0.15700068,4015.5,4015.3,2.32022327]
[1733531442068,0.15700068,4015.5,4015.0,3.7713]
[1733531442279,0.15700068,4015.5,4014.5,2.32022327]
[1733531443967,0.15700068,4015.5,4014.5,5.32022327]
[1733531447820,0.15700068,4015.5,4015.3,2.32022327]
[1733531448103,0.15700068,4015.5,4015.4,3.23202233]
[1733531452390,0.94570068,4015.5,4013.9,0.7867]
[1733531452692,0.94570068,4015.5,4014.4,2.32022327]
[1733531452912,0.94570068,4015.5,4014.8,2.32022327]
[1733531456131,0.55,4015.4,4014.8,2.32022327]
[1733531458234,0.55,4015.4,4014.5,3.0]
[1733531459525,0.55,4015.4,4014.6,0.61069233]
[1733531460998,0.85992996,4015.3,4014.6,0.61069233]
[1733531461299,0.55,4015.4,4014.6,0.61069233]
[1733531461525,0.7887,4015.1,4014.4,2.32022327]
[1733531461839,0.7887,4015.1,4012.8,2.42022327]
[1733531461840,1.41000811,4015.0,4014.0,2.32022327]
[1733531462045,0.15700068,4015.5,4015.1,0.7867]
[1733531462200,3.55,4016.0,4015.4,2.32022327]
[1733531462201,3.22161758,4016.0,4015.4,2.32022327]
[1733531462400,0.01184845,4016.0,4015.9,2.32022327]
[1733531462699,0.01184845,4016.0,4015.9,7.47842855]
[1733531463137,0.01184845,4016.0,4015.9,10.58535182]
[1733531463343,0.01184845,4016.0,4015.9,9.56107939]
[1733531463634,0.01184845,4016.0,4015.9,9.38325448]
[1733531464314,0.01184845,4016.0,4015.9,7.19101377]
[1733531465144,0.01184845,4016.0,4015.9,7.06303121]
[1733531465935,0.01184845,4016.0,4015.9,6.27633121]
[1733531466134,0.01184845,4016.0,4015.9,2.32022327]
[1733531470645,0.83604845,4016.0,4015.3,2.32022327]
[1733531471205,0.83604845,4016.0,4014.9,0.7965]
[1733531471206,0.83604845,4016.0,4015.7,2.32022327]
[1733531471498,0.83604845,4016.0,4014.9,0.7965]
[1733531471499,0.55,4015.9,4015.3,2.32022327]
[1733531474170,0.85536044,4015.9,4015.3,2.32022327]
[1733531475514,0.85536044,4015.9,4014.9,2.32022327]
[1733531475633,0.55,4015.7,4014.9,2.32022327]
[1733531476737,1.3742,4015.8,4014.9,2.32022327]
[1733531477050,0.55,4015.6,4014.9,2.32022327]
[1733531477369,0.71795604,4015.6,4014.9,2.32022327]
[1733531477533,0.55,4015.4,4014.5,2.32022327]
[1733531479347,0.55,4015.4,4014.9,2.32022327]
[1733531480165,0.55,4015.4,4014.5,2.32022327]
[1733531485966,0.8242,4015.5,4014.9,2.32022327]
[1733531486163,0.8242,4015.9,4015.3,2.32022327]
[1733531487270,0.55,4015.8,4015.3,2.32022327]
[1733531488006,0.55,4015.8,4015.0,3.53202233]
[1733531488895,0.8292,4015.7,4015.0,3.53202233]
[1733531489066,0.55,4015.8,4015.0,3.53202233]
[1733531489267,0.55,4015.9,4015.1,0.58522456]
[1733531489905,0.55,4015.9,4014.6,0.7965]
[1733531489906,0.55,4015.7,4014.6,0.7965]
[1733531490103,0.7785,4015.6,4014.5,0.12366875]
[1733531490307,0.55,4015.5,4014.4,2.32022327]
[1733531490904,0.55,4015.6,4014.4,2.32022327]
[1733531491275,0.55,4015.7,4014.4,2.32022327]
[1733531491503,0.55,4015.5,4014.4,2.32022327]
[1733531493173,0.7814,4015.4,4014.4,2.32022327]
[1733531493572,0.7814,4015.4,4014.4,2.34513048]
[1733531494605,0.7814,4015.4,4014.4,2.32022327]
[1733531495630,0.7814,4015.4,4014.4,2.34513048]
[1733531495833,0.7814,4015.4,4014.5,3.60972305]
[1733531496122,0.7814,4015.7,4014.9,0.7952]
[1733531496276,0.7814,4015.7,4014.9,3.7952]
[1733531501213,0.01184845,4016.0,4015.6,2.32022327]
[1733531501413,0.01184845,4016.0,4015.7,0.7952]
[1733531501616,0.01184845,4016.0,4015.7,4.10674233]
[1733531511021,0.01184845,4016.0,4015.7,3.31154233]
[1733531511347,0.83684845,4016.0,4015.7,3.31154233]
[1733531511552,0.01184845,4016.0,4015.6,2.32022327]
[1733531518266,0.01184845,4016.0,4015.3,3.95565066]
[1733531520161,0.01184845,4016.0,4015.3,0.95565066]
[1733531520339,0.86052838,4015.9,4015.0,0.7742]
[1733531520596,0.01184845,4016.0,4015.0,0.7742]
[1733531520597,0.01184845,4016.0,4015.2,2.32022327]
[1733531520727,0.86053282,4015.9,4015.2,2.32022327]
[1733531520930,0.01184845,4016.0,4015.2,2.32022327]
[1733531523236,0.01184845,4016.0,4015.6,2.32022327]
[1733531523432,0.01184845,4016.0,4015.8,0.7742]
[1733531524851,0.01184845,4016.0,4015.8,0.89919489]
[1733531525381,0.01184845,4016.0,4015.8,0.7742]
[1733531526285,0.01184845,4016.0,4015.7,3.656201]
[1733531527764,0.01184845,4016.0,4015.7,3.53202233]
[1733531527962,0.01184845,4016.0,4015.8,0.58522456]
[1733531533151,0.01184845,4016.0,4015.6,2.32022327]
[1733531533356,0.01184845,4016.0,4015.7,3.7571]
[1733531533872,0.01184845,4016.0,4015.4,0.8855691]
[1733531534197,0.01184845,4016.0,4015.5,3.0]
[1733531534408,0.00696579,4016.0,4015.6,5.32022327]
[1733531534564,0.00696579,4016.0,4015.6,2.9279556]
[1733531534767,0.00696579,4016.0,4015.7,3.0]
[1733531537020,0.00696579,4016.0,4015.8,0.02489949]
[1733531537170,0.00696579,4016.0,4015.7,3.0]
[1733531537171,0.00696579,4016.0,4015.9,0.7571]
[1733531537371,0.00696579,4016.0,4015.9,1.42560556]
[1733531538699,0.00696579,4016.0,4015.9,0.66850556]
[1733531539007,0.00696579,4016.0,4015.6,2.32022327]
[1733531539008,0.00696579,4016.0,4015.6,5.32022327]
[1733531539212,0.00696579,4016.0,4015.6,5.44736676]
[1733531541571,0.00696579,4016.0,4015.6,5.40736676]
[1733531544476,0.00696579,4016.0,4015.4,2.32022327]
[1733531544678,0.00696579,4016.0,4015.4,3.07732327]
[1733531544879,0.00696579,4016.0,4015.5,3.0]
[1733531545174,0.8004,4015.9,4015.5,3.0]
[1733531545398,0.8004,4015.9,4015.4,2.32022327]
[1733531548782,0.8004,4015.9,4015.5,3.0]
[1733531549381,0.8004,4015.9,4015.4,2.32022327]
[1733531550128,0.8004,4015.9,4015.1,0.12827309]
[1733531550421,0.8004,4015.9,4015.1,3.54484964]
[1733531551495,0.8004,4015.9,4015.0,2.32022327]
[1733531551907,0.86138572,4015.8,4015.0,2.32022327]
[1733531552139,0.8274,4015.7,4015.0,2.32022327]
[1733531553696,0.8274,4015.7,4014.8,0.12572978]
[1733531553927,0.8274,4015.7,4014.6,2.32022327]
[1733531554231,0.8274,4015.7,4014.7,3.61113233]
[1733531556650,0.8274,4015.7,4015.2,1.07006227]
[1733531558902,0.8274,4015.7,4015.5,1.07006227]
[1733531561877,0.00696579,4016.0,4015.5,1.07006227]
[1733531564164,0.00696579,4016.0,4015.8,1.07006227]
[1733531569596,0.00696579,4016.0,4015.6,0.12788442]
[1733531569597,1.07006227,4015.9,4015.6,0.12788442]
[1733531569757,1.07006227,4015.9,4015.4,0.7911]
[1733531569952,1.07006227,4015.6,4015.4,0.7911]
[1733531570158,1.07006227,4015.6,4015.4,0.91753076]
[1733531572378,0.00696579,4016.0,4015.5,0.02490035]
[1733531572585,0.00696579,4016.0,4015.5,0.55]
[1733531572763,0.00696579,4016.0,4015.7,0.7945]
[1733531577779,18.45029075,4016.1,4015.8,0.55]
[1733531577978,17.31129075,4016.1,4015.9,0.7945]
[1733531578196,17.02069075,4016.1,4015.9,0.7945]
[1733531578564,16.07029076,4016.1,4015.9,0.7945]
[1733531578871,13.41079129,4016.1,4015.9,0.7945]
[1733531579064,10.36600867,4016.1,4015.9,1.3445]
[1733531579261,10.36600867,4016.1,4016.0,1.53395]
[1733531579262,7.20530867,4016.1,4016.0,1.53395]
[1733531579467,4.04460867,4016.1,4016.0,1.53395]
[1733531579768,3.66400867,4016.1,4016.0,1.53395]
[1733531579973,3.28660868,4016.1,4016.0,1.53395]
[1733531580185,2.83280868,4016.1,4016.0,1.53395]
[1733531580360,3.55,4016.3,4016.2,0.7945]
[1733531580560,3.55,4016.7,4016.2,0.947895]
[1733531580760,1.07006227,4016.6,4016.2,0.947895]
[1733531583974,1.07006227,4016.6,4016.2,1.07263952]
[1733531584502,3.55,4016.7,4016.3,0.7945]
[1733531585621,3.0571,4016.7,4016.3,0.7945]
[1733531585984,2.8971,4016.7,4016.3,0.7945]
[1733531586188,1.3869,4016.7,4016.3,0.7945]
[1733531586396,0.4942,4016.7,4016.5,0.7945]
[1733531586706,0.4942,4016.7,4016.4,0.76427018]
[1733531586707,0.203,4016.7,4016.6,1.3445]
[1733531586909,0.203,4016.7,4016.6,0.7945]
[1733531588486,0.203,4016.7,4016.3,0.7547]
[1733531589488,1.27306227,4016.7,4016.3,0.7547]
[1733531589690,0.203,4016.7,4016.3,0.7547]
[1733531590588,0.203,4016.7,4016.3,0.87734297]
[1733531591119,1.07006227,4016.6,4016.3,0.12264297]
[1733531591425,1.07006227,4016.6,4016.0,0.7547]
[1733531592396,0.9699,4016.7,4016.1,0.02489452]
[1733531592397,0.203,4016.7,4016.1,0.02489452]
[1733531592598,0.203,4016.7,4016.2,0.7618]
[1733531592943,0.203,4016.7,4016.3,0.13118]
[1733531593234,0.003,4016.7,4016.4,1.3118]
[1733531594997,0.003,4016.7,4016.4,0.88745388]
[1733531596724,0.003,4016.7,4016.5,0.55]
[1733531597051,40.57586614,4016.8,4016.6,0.7618]
[1733531597252,26.39391623,4016.8,4016.7,0.7618]
[1733531597405,11.78383188,4016.8,4016.7,4.72391503]
[1733531597606,39.52548215,4016.9,4016.8,0.9986]
[1733531597811,1.114881,4016.9,4016.8,3.71921801]
[1733531598105,28.4,4018.8,4016.7,4.17006227]
[1733531598106,15.24878145,4017.7,4017.6,0.85]
[1733531598311,15.24878145,4017.7,4017.6,1.9520864]
[1733531598534,15.03478145,4017.7,4017.6,1.7034864]
[1733531598809,6.33902126,4017.7,4017.6,1.4034864]
[1733531599042,6.16442126,4017.7,4017.4,0.93959913]
[1733531599261,6.16442126,4017.7,4017.5,0.55]
[1733531599262,6.11442126,4017.7,4017.5,0.55]
[1733531600440,5.95696962,4017.7,4017.5,0.55]
[1733531603658,5.95696962,4017.7,4017.5,0.65]
[1733531604236,5.95696962,4017.7,4017.6,0.75]
[1733531605056,5.79696962,4017.7,4017.6,0.75]
[1733531605257,5.25636963,4017.7,4017.6,0.75]
[1733531605547,5.09636963,4017.7,4017.6,0.75]
[1733531605766,4.93636963,4017.7,4017.6,0.75]
[1733531605960,4.39576964,4017.7,4017.6,0.75]
[1733531606117,3.85516965,4017.7,4017.6,0.75]
[1733531606318,2.22906965,4017.7,4017.6,0.75]
[1733531606557,2.22906965,4017.7,4017.6,1.15587411]
[1733531606922,0.21846965,4017.7,4017.6,1.15587411]
[1733531607135,28.4,4018.8,4017.7,0.55]
[1733531607331,27.25820001,4018.0,4017.7,0.95587411]
[1733531607552,14.34140004,4018.0,4017.9,0.85]
[1733531607761,10.02230005,4018.0,4017.9,1.25587411]
[1733531607965,6.84750005,4018.0,4017.9,1.25587411]
[1733531608271,2.28010005,4018.0,4017.9,1.25587411]
[1733531608566,2.28010005,4018.0,4017.9,0.9986]
[1733531608769,2.28010005,4018.0,4017.9,0.75]
[1733531609127,1.87680005,4018.0,4017.9,0.75]
[1733531609545,0.66820006,4018.0,4017.9,0.75]
[1733531612585,0.66820006,4018.0,4017.9,1.15587411]
[1733531613583,0.66820006,4018.0,4017.9,1.59536747]
[1733531614291,0.66820006,4018.0,4017.9,1.57048592]
[1733531615078,0.66820006,4018.0,4017.9,1.81908592]
[1733531617261,0.66820006,4018.0,4017.9,7.1346229]
[1733531619568,0.66820006,4018.0,4017.9,1.81908592]
[1733531620821,0.66820006,4018.0,4017.9,1.84396585]
[1733531621178,0.66820006,4018.0,4017.9,13.63396585]
[1733531621388,0.66820006,4018.0,4017.9,13.60908592]
[1733531622013,0.66820006,4018.0,4017.9,12.7886]
[1733531622570,0.66820006,4018.0,4017.9,13.85641276]
[1733531623265,0.01334627,4018.0,4017.9,13.85641276]
[1733531625907,7.61637808,4018.4,4018.3,2.16641276]
[1733531626203,7.61637808,4018.4,4018.3,1.91781276]
[1733531627005,7.61637808,4018.4,4018.3,2.16641276]
[1733531628100,7.61637808,4018.4,4018.3,1.0986]
[1733531629723,7.61637808,4018.4,4018.3,4.0986]
[1733531635850,6.21917897,4018.4,4018.3,4.0986]
[1733531637148,6.21917897,4018.4,4018.3,1.47738088]
[1733531637342,6.21917897,4018.4,4018.3,4.47738088]
[1733531638216,6.21917897,4018.4,4018.3,5.47186088]
[1733531640054,6.21917897,4018.4,4018.3,5.09308]
[1733531641828,6.21917897,4018.4,4018.3,14.95089276]
[1733531642033,5.21917897,4018.4,4018.3,15.94971827]
[1733531642336,3.51186946,4018.4,4018.3,14.88190551]
[1733531642558,3.50913492,4018.4,4018.3,14.88190551]
[1733531642712,2.95913492,4018.4,4018.3,14.6488347]
[1733531642913,2.84947446,4018.4,4018.3,14.6488347]
[1733531643242,2.84947446,4018.4,4018.3,15.71664746]
[1733531643568,28.4,4018.8,4018.7,0.5486]
[1733531643569,17.8,4018.8,4018.7,0.5486]
[1733531643716,17.8,4018.8,4018.7,3.42601773]
[1733531644063,15.68,4018.8,4018.7,15.21601773]
[1733531644358,15.68,4018.8,4018.7,15.19114308]
[1733531644563,13.56,4018.8,4018.7,15.36716566]
[1733531644786,13.56,4018.8,4018.7,15.91716566]
[1733531645148,13.56,4018.8,4018.7,15.2002481]
[1733531645941,12.1631568,4018.8,4018.7,15.2002481]
[1733531647140,12.1631568,4018.8,4018.7,6.4102481]
[1733531647561,11.1631568,4018.8,4018.7,6.76481735]
[1733531647874,0.1654889,4019.1,4019.0,1.0986]
[1733531648043,0.1654889,4019.1,4019.0,1.1234721]
[1733531648743,0.1654889,4019.1,4019.0,1.12347274]
[1733531649779,0.1654889,4019.1,4019.0,1.12347266]
[1733531650004,14.2,4020.4,4020.3,3.0616481]
[1733531650278,14.2,4020.4,4020.3,3.3102481]
[1733531650640,14.2,4020.4,4020.3,3.3097481]
[1733531651877,14.2,4020.4,4020.3,6.3097481]
[1733531652072,14.1,4020.4,4020.3,6.3097481]
[1733531652281,14.05,4020.4,4020.3,6.3097481]
[1733531653165,14.05,4020.4,4020.3,15.47204888]
[1733531657161,14.05,4020.4,4020.3,15.0997481]
[1733531657906,14.05,4020.4,4020.3,14.8516481]
[1733531658055,14.05,4020.4,4020.3,15.0997481]
[1733531658257,14.05,4020.4,4020.3,15.47204888]
[1733531658676,14.05,4020.4,4020.3,6.68204888]
[1733531658874,14.05,4020.4,4020.3,7.04439719]
[1733531661578,14.05,4020.4,4020.3,15.83439719]
[1733531662377,6.69,4020.4,4020.3,15.83439719]
[1733531663294,5.29394466,4020.4,4020.3,15.83439719]
[1733531664777,5.29394466,4020.4,4020.3,15.47204888]
[1733531666323,5.29394466,4020.4,4020.3,15.0997481]
[1733531668986,3.55,4021.3,4021.2,12.54]
[1733531669217,3.55,4021.3,4021.2,14.8516481]
[1733531669722,3.55,4021.3,4021.2,12.54]
[1733531669876,3.55,4021.3,4021.2,14.8516481]
[1733531672308,10.65,4022.4,4022.2,0.2]
[1733531672493,10.65,4022.4,4021.9,0.1]
[1733531672494,11.4406,4022.4,4022.1,2.3116481]
[1733531672699,11.4406,4022.4,4021.9,3.0]